fUSD/lending_fUSD_20240930
["ID","MTS","AMOUNT","RATE_DAILY","PERIOD"]
[339550293,1727689838459,-1311.76,0.000124,2]
[339550294,1727689838468,-300.1,0.000124,2]
[339550295,1727689838477,-1014.48,0.000124,2]
[339550296,1727689838486,-160.36941333,0.000124,2]
[339550297,1727689838495,-2677.3116,0.000124,2]
[339550298,1727689838504,-606.69214154,0.000124,2]
[339550299,1727689838513,-3400.0,0.000124,4]
[339550300,1727689838522,-159.88543447,0.000124,2]
[339550301,1727689838531,-159.88543447,0.000124,2]
[339550302,1727689838540,-159.88543447,0.000124,2]
[339550303,1727689838549,-159.88543447,0.000124,2]
[339550304,1727689838558,-159.88543447,0.000124,2]
[339550305,1727689838567,-160.38,0.000124,2]
[339550306,1727689838576,-155.18395301,0.000124,2]
[339550307,1727689838586,-155.18395301,0.000124,2]
[339550308,1727689838595,-155.18395301,0.000124,2]
[339550309,1727689838603,-155.18395301,0.000124,2]
[339550310,1727689838613,-155.18395301,0.000124,2]
[339550311,1727689838622,-155.18395301,0.000124,2]
[339550312,1727689838631,-155.68,0.000124,2]
[339550313,1727689838640,-168.16021063,0.000124,2]
[339550315,1727689838649,-168.16021063,0.000124,2]
[339550317,1727689838659,-168.16021063,0.000124,2]
[339550319,1727689838675,-168.16021063,0.000124,2]
[339550321,1727689838685,-168.66,0.000124,2]
[339550322,1727689838694,-915.71399161,0.000124,2]
[339550323,1727689838703,-420.0,0.00012439,2]
[339550324,1727689838713,-505.117,0.00012441,2]
[339550325,1727689838722,-623.581,0.00012441,2]
[339550326,1727689838731,-296.999,0.00012441,2]
[339550327,1727689838740,-167.0,0.00012445,2]
[339550329,1727689838749,-167.01,0.00012445,2]
[339550331,1727689838759,-500.0,0.00012473,2]
[339550333,1727689838770,-160.23327392,0.00012473,2]
[339550335,1727689838778,-500.0,0.00012473,2]
[339550337,1727689838787,-440.090976,0.00012478,2]
[339550339,1727689838796,-153.35,0.00012489,2]
[339550341,1727689838805,-190.84835501,0.0001249,2]
[339550343,1727689838814,-190.84835501,0.0001249,2]
[339550344,1727689838823,-153.35,0.0001249,2]
[339550345,1727689838832,-150.0,0.00012493,2]
[339550346,1727689838846,-237.22490526,0.00012493,2]
[339550347,1727689838854,-150.0,0.00012493,2]
[339550349,1727689838864,-150.0,0.00012493,2]
[339550351,1727689838873,-63217.3174584,0.00012497,2]
[339550353,1727689838882,-224.99652476,0.00012497,2]
[339550355,1727689838891,-500.0,0.00012497,2]
[339550357,1727689838899,-3422.59,0.00012497,2]
[339550359,1727689838909,-3422.59,0.00012497,2]
[339550361,1727689838923,-3422.59,0.00012497,2]
[339550363,1727689838932,-3422.59,0.00012497,2]
[339550365,1727689838941,-502.27017597,0.00012497,2]
[339550367,1727689838949,-496.68913657,0.00012497,2]
[339550369,1727689838959,-505.63207811,0.00012497,2]
[339550371,1727689838968,-332.81602078,0.00012497,2]
[339550373,1727689838977,-1256.62,0.00012497,2]
[339550375,1727689838986,-1256.62,0.00012497,2]
[339550376,1727689838995,-1256.62,0.00012497,2]
[339550378,1727689839004,-1256.62,0.00012497,2]
[339550380,1727689839013,-500.0,0.00012497,2]
[339550382,1727689839023,-226585.50071329,0.00012498,2]
[339550385,1727689839035,-3422.59,0.00012498,2]
[339550387,1727689839044,-1256.62,0.00012498,2]
[339550388,1727689839053,-206.24275364,0.00012498,2]
[339550390,1727689839063,-529.69,0.00012498,2]
[339550392,1727689839072,-347.37211975,0.00012499,2]
[339550394,1727689839082,-3422.59,0.00012499,2]
[339550396,1727689839092,-3422.59,0.00012499,2]
[339550398,1727689839101,-3422.59,0.00012499,2]
[339550400,1727689839111,-3422.59,0.00012499,2]
[339550402,1727689839120,-3422.59,0.00012499,2]
[339550404,1727689839129,-3422.59,0.00012499,2]
[339550406,1727689839139,-3422.59,0.00012499,2]
[339550408,1727689839148,-3422.59,0.00012499,2]
[339550410,1727689839157,-3422.59,0.00012499,2]
[339550412,1727689839174,-3422.59,0.00012499,2]
[339550414,1727689839184,-3422.59,0.00012499,2]
[339550416,1727689839193,-3422.59,0.00012499,2]
[339550418,1727689839202,-3422.59,0.00012499,2]
[339550420,1727689839211,-3422.59,0.00012499,2]
[339550422,1727689839220,-3422.59,0.00012499,2]
[339550424,1727689839230,-1975.45261323,0.00012499,2]
[339550440,1727689839382,-1447.13738677,0.00012499,2]
[339550442,1727689839392,-3422.59,0.00012499,2]
[339550444,1727689839401,-275.5726108,0.00012499,2]
[339550446,1727689839416,-3147.0173892,0.00012499,2]
[339550448,1727689839425,-3422.80000052,0.00012499,2]
[339550450,1727689839435,-1256.62,0.00012499,2]
[339550452,1727689839444,-1256.62,0.00012499,2]
[339550454,1727689839454,-1256.62,0.00012499,2]
[339550456,1727689839463,-1256.62,0.00012499,2]
[339550458,1727689839473,-1256.62,0.00012499,2]
[339550459,1727689839483,-1256.62,0.00012499,2]
[339550461,1727689839492,-1256.62,0.00012499,2]
[339550463,1727689839501,-1256.62,0.00012499,2]
[339550465,1727689839510,-1256.62,0.00012499,2]
[339550467,1727689839519,-1256.62,0.00012499,2]
[339550469,1727689839529,-1256.62,0.00012499,2]
[339550471,1727689839538,-1256.62,0.00012499,2]
[339550473,1727689839548,-1256.62,0.00012499,2]
[339550475,1727689839557,-1256.62,0.00012499,2]
[339550476,1727689839567,-1256.62,0.00012499,2]
[339550478,1727689839576,-1256.62,0.00012499,2]
[339550480,1727689839586,-1256.62,0.00012499,2]
[339550482,1727689839595,-1256.62,0.00012499,2]
[339550484,1727689839604,-1256.66105023,0.00012499,2]
[339550486,1727689839613,-1648.5182697,0.000125,2]
[339550488,1727689839623,-558.0,0.000125,2]
[339550490,1727689839632,-12084.9330453,0.000125,2]
[339550493,1727689839649,-534.79799065,0.000125,2]
[339550495,1727689839659,-319.32,0.000125,2]
[339550497,1727689839676,-38313.56489245,0.000125,2]
[339550499,1727689839686,-33317.12790913,0.000125,2]
[339550553,1727689840206,-1278.93957639,0.000125,2]
[339550556,1727689840218,-5818.34291614,0.000125,2]
[339550558,1727689840230,-267.2574827,0.000125,2]
[339550577,1727689840408,-20106.592846,0.000125,2]
[339550590,1727689840526,-415.1,0.000125,2]
[339550839,1727689843251,-707.3898016,0.000125,2]
[339550841,1727689843263,-95138.05260957,0.000125,2]
[339550843,1727689843276,-9493.0405304,0.000125,2]
[339550853,1727689843360,-394.58101345,0.000125,2]
[339550856,1727689843371,-296.13443335,0.000125,2]
[339550858,1727689843383,-5626.523833,0.000125,2]
[339550860,1727689843394,-640.224,0.000125,2]
[339550862,1727689843406,-740.23858598,0.000125,2]
[339550864,1727689843419,-3833.99278644,0.000125,2]
[339550868,1727689843431,-371.89091566,0.000125,2]
[339550871,1727689843442,-2421.6,0.000125,2]
[339550874,1727689843453,-5190.80850934,0.000125,2]
[339550877,1727689843464,-3079.99995,0.000125,2]
[339550887,1727689843548,-1732.88242047,0.000125,2]
[339550889,1727689843560,-1330.06831286,0.000125,2]
[339550891,1727689843573,-380375.40311803,0.000125,2]
[339550893,1727689843584,-604.07802196,0.000125,2]
[339550896,1727689843595,-2126.874996,0.000125,2]
[339550898,1727689843606,-6336.94334604,0.000125,2]
[339551151,1727689846199,-504.0,0.000125,2]
[339551153,1727689846209,-12085.80803397,0.000125,2]
[339551155,1727689846220,-1520.81470479,0.000125,2]
[339551158,1727689846232,-657.24999999,0.000125,2]
[339551167,1727689846308,-6410.64000001,0.000125,2]
[339551169,1727689846319,-4983.1836386,0.000125,2]
[339551173,1727689846346,-67555.08890951,0.000125,2]
[339551185,1727689846460,-437.57170826,0.000125,2]
[339551573,1727690045472,250.64,0.00021999,120]
[339551574,1727690045771,250.64,0.00021999,120]
[339551575,1727690046022,250.64,0.00021999,120]
[339551576,1727690046281,250.64,0.00021999,120]
[339551577,1727690046533,250.64,0.00021999,120]
[339551578,1727690046784,250.64,0.00021999,120]
[339551579,1727690047066,250.64,0.00021999,120]
[339551580,1727690047334,250.64,0.00021999,120]
[339551581,1727690047617,250.64,0.00021999,120]
[339551582,1727690047888,250.64,0.00021999,120]
[339551583,1727690048157,250.64,0.00021999,120]
[339551584,1727690048457,250.64,0.00021999,120]
[339551585,1727690048746,250.64,0.00021999,120]
[339551586,1727690049036,250.64,0.00021999,120]
[339551587,1727690049323,250.64,0.00021999,120]
[339551588,1727690049924,250.64,0.00021999,120]
[339551589,1727690050196,250.64,0.00021999,120]
[339551590,1727690050575,250.64,0.00021999,120]
[339551591,1727690050832,250.64,0.00021999,120]
[339551592,1727690051095,250.64,0.00021999,120]
[339551593,1727690051384,250.64,0.00021999,120]
[339551594,1727690051668,250.64,0.00021999,120]
[339551595,1727690051919,250.64,0.00021999,120]
[339551596,1727690052197,250.82946449,0.00021999,120]
[339551598,1727690213722,428.65,9.803e-05,2]
[339551599,1727690215258,1056.42068743,0.00022,120]
[339551600,1727690440753,2000.0,8.2e-05,30]
[339551601,1727690442023,694.45,0.00021999,120]
[339551602,1727690442308,694.45,0.00021999,120]
[339551603,1727690442577,694.45,0.00021999,120]
[339551604,1727690442639,2000.0,0.000123,30]
[339551605,1727690442947,694.45,0.00021999,120]
[339551606,1727690443576,694.45,0.00021999,120]
[339551607,1727690443604,694.45,0.00021999,120]
[339551608,1727690443842,694.45,0.00021999,120]
[339551609,1727690444123,694.45,0.00021999,120]
[339551610,1727690444382,694.45,0.00021999,120]
[339551611,1727690444634,694.45,0.00021999,120]
[339551612,1727690444900,694.45,0.00021999,120]
[339551613,1727690445258,694.45,0.00021999,120]
[339551614,1727690445544,694.45,0.00021999,120]
[339551615,1727690445822,694.45,0.00021999,120]
[339551616,1727690446584,694.45,0.00021999,120]
[339551617,1727690446908,694.45,0.00021999,120]
[339551618,1727690447187,694.45,0.00021999,120]
[339551619,1727690447480,694.45,0.00021999,120]
[339551620,1727690447747,694.45,0.00021999,120]
[339551621,1727690448033,694.45,0.00021999,120]
[339551622,1727690448376,694.45,0.00021999,120]
[339551623,1727690448668,694.45,0.00021999,120]
[339551624,1727690448964,694.45,0.00021999,120]
[339551625,1727690449251,694.45,0.00021999,120]
[339551626,1727690462750,1746.94,0.00021999,120]
[339551627,1727690463045,1746.94,0.00021999,120]
[339551628,1727690463341,1746.94,0.00021999,120]
[339551629,1727690463620,1746.94,0.00021999,120]
[339551630,1727690463904,1746.94,0.00021999,120]
[339551631,1727690464200,1746.94,0.00021999,120]
[339551632,1727690464554,1746.94,0.00021999,120]
[339551633,1727690464761,1746.94,0.00021999,120]
[339551634,1727690465077,1746.94,0.00021999,120]
[339551635,1727690465343,1746.94,0.00021999,120]
[339551636,1727690465608,1746.94,0.00021999,120]
[339551637,1727690465911,1746.94,0.00021999,120]
[339551638,1727690466192,1746.94,0.00021999,120]
[339551639,1727690466482,1746.94,0.00021999,120]
[339551640,1727690466735,1746.94,0.00021999,120]
[339551641,1727690467025,1746.94,0.00021999,120]
[339551642,1727690467303,1746.94,0.00021999,120]
[339551643,1727690467626,1746.94,0.00021999,120]
[339551644,1727690467962,1746.94,0.00021999,120]
[339551645,1727690468249,1746.94,0.00021999,120]
[339551646,1727690468641,1746.94,0.00021999,120]
[339551647,1727690468932,1746.94,0.00021999,120]
[339551648,1727690475526,500.0,0.00021999,120]
[339551649,1727690476830,500.0,0.00021999,120]
[339551650,1727690477198,500.0,0.00021999,120]
[339551651,1727690477468,500.0,0.00021999,120]
[339551652,1727690477794,500.0,0.00021999,120]
[339551653,1727690478207,500.0,0.00021999,120]
[339551654,1727690478494,500.0,0.00021999,120]
[339551655,1727690478888,500.0,0.00021999,120]
[339551656,1727690479161,500.0,0.00021999,120]
[339551657,1727690479451,500.0,0.00021999,120]
[339551658,1727690479734,500.0,0.00021999,120]
[339551659,1727690480040,500.0,0.00021999,120]
[339551660,1727690480308,500.0,0.00021999,120]
[339551661,1727690480607,199.87671615,0.00021999,120]
[339551662,1727690485653,1746.94,0.00021999,120]
[339551663,1727690486115,1747.02108819,0.00021999,120]
[339551664,1727690508173,502.5681532,0.00021999,120]
[339551665,1727690545021,500.0,0.00021999,120]
[339551666,1727690545295,621.91838954,0.00021999,120]
[339551667,1727690546914,958.91,0.00021999,120]
[339551668,1727690547180,958.91,0.00021999,120]
[339551669,1727690547438,958.91,0.00021999,120]
[339551670,1727690547709,958.91,0.00021999,120]
[339551671,1727690548070,958.91,0.00021999,120]
[339551672,1727690548365,958.91,0.00021999,120]
[339551673,1727690548670,958.91,0.00021999,120]
[339551674,1727690548937,958.91,0.00021999,120]
[339551675,1727690549233,958.91,0.00021999,120]
[339551676,1727690549650,958.91,0.00021999,120]
[339551677,1727690549787,958.91,0.00021999,120]
[339551678,1727690550083,958.91,0.00021999,120]
[339551679,1727690550368,958.91,0.00021999,120]
[339551680,1727690553563,958.91,0.00021999,120]
[339551681,1727690553911,958.91,0.00021999,120]
[339551682,1727690554572,958.91,0.00021999,120]
[339551683,1727690554857,958.91,0.00021999,120]
[339551684,1727690555139,958.91,0.00021999,120]
[339551685,1727690555403,958.91,0.00021999,120]
[339551686,1727690555672,958.91,0.00021999,120]
[339551687,1727690555930,958.91,0.00021999,120]
[339551688,1727690556182,958.91,0.00021999,120]
[339551689,1727690556449,958.91,0.00021999,120]
[339551690,1727690556725,959.12174199,0.00021999,120]
[339551691,1727690643029,713.84634595,0.0001,2]
[339551692,1727690678427,1478.75,0.00021999,120]
[339551693,1727690678721,1478.75,0.00021999,120]
[339551694,1727690679341,1478.75,0.00021999,120]
[339551695,1727690679633,1478.75,0.00021999,120]
[339551696,1727690680195,1478.75,0.00021999,120]
[339551697,1727690680498,1478.75,0.00021999,120]
[339551698,1727690680760,1478.75,0.00021999,120]
[339551699,1727690681058,1478.75,0.00021999,120]
[339551700,1727690681335,1478.75,0.00021999,120]
[339551701,1727690681598,1478.75,0.00021999,120]
[339551702,1727690681946,1478.75,0.00021999,120]
[339551703,1727690682243,1478.75,0.00021999,120]
[339551704,1727690682518,1478.75,0.00021999,120]
[339551705,1727690682782,1478.75,0.00021999,120]
[339551706,1727690683080,1478.75,0.00021999,120]
[339551707,1727690683373,1478.75,0.00021999,120]
[339551708,1727690683639,1478.75,0.00021999,120]
[339551709,1727690683911,1478.75,0.00021999,120]
[339551710,1727690684203,1478.75,0.00021999,120]
[339551711,1727690684482,1478.75,0.00021999,120]
[339551712,1727690684887,1478.75,0.00021999,120]
[339551713,1727690685039,1478.75,0.00021999,120]
[339551714,1727690685309,1478.75,0.00021999,120]
[339551715,1727690685592,1478.88278115,0.00021999,120]
[339551716,1727690697881,508.27959248,0.00021999,120]
[339551717,1727690777179,420.04,9.41e-05,2]
[339551718,1727690835455,500.0,0.00021999,120]
[339551719,1727690835742,357.04520513,0.00021999,120]
[339551720,1727690845641,379.4,0.00022,120]
[339551721,1727690875759,1821.2,0.00021999,120]
[339551722,1727690876118,1821.2,0.00021999,120]
[339551723,1727690876395,1821.2,0.00021999,120]
[339551724,1727690876694,1821.2,0.00021999,120]
[339551725,1727690876977,1821.2,0.00021999,120]
[339551726,1727690877253,1821.2,0.00021999,120]
[339551727,1727690877517,1821.2,0.00021999,120]
[339551728,1727690877828,1821.2,0.00021999,120]
[339551729,1727690878185,1821.2,0.00021999,120]
[339551730,1727690878475,1821.2,0.00021999,120]
[339551731,1727690878774,1821.2,0.00021999,120]
[339551732,1727690879065,1821.2,0.00021999,120]
[339551733,1727690879386,1821.2,0.00021999,120]
[339551734,1727690879638,1821.2,0.00021999,120]
[339551735,1727690879937,1821.2,0.00021999,120]
[339551736,1727690880358,1821.2,0.00021999,120]
[339551737,1727690880608,1821.2,0.00021999,120]
[339551738,1727690880880,1821.2,0.00021999,120]
[339551739,1727690881159,1821.2,0.00021999,120]
[339551740,1727690881551,1821.2,0.00021999,120]
[339551741,1727690881814,1821.2,0.00021999,120]
[339551742,1727690882102,1821.2,0.00021999,120]
[339551743,1727690882403,1821.2,0.00021999,120]
[339551744,1727690882673,1821.37614864,0.00021999,120]
[339551748,1727690967971,-2565.0,0.00010904,2]
[339551749,1727691019010,-1396.19,0.00010904,2]
[339551780,1727691032478,-161.05,0.00010959,2]
[339551781,1727691032488,-193.71553842,0.00011,2]
[339551782,1727691035897,-856.28446158,0.00011,2]
[339551783,1727691035906,-300.0,0.00011243,2]
[339551784,1727691035916,-173.71021251,0.00011244,2]
[339551785,1727691035925,-265.20755301,0.00011244,2]
[339551786,1727691035934,-158.51370714,0.00011244,2]
[339551787,1727691035943,-515.46,0.00011287,2]
[339551788,1727691035953,-172.09,0.0001134,2]
[339551789,1727691035962,-1381.57406576,0.00011377,2]
[339551790,1727691035973,-633.33,0.00011377,2]
[339551791,1727691036032,-250.77593424,0.00011377,2]
[339551792,1727691036042,-306.06,0.0001142,2]
[339551793,1727691036051,-250.0,0.00011446,2]
[339551794,1727691036061,-194.07,0.00011446,2]
[339551795,1727691036071,-295.25,0.000115,2]
[339551796,1727691036080,-691.18,0.00011507,2]
[339551797,1727691036089,-138.77615969,0.00011584,2]
[339551798,1727691036100,-42.04384031,0.00011584,2]
[339551799,1727691036114,-420.04,0.00011674,2]
[339551800,1727691036123,-324.21248225,0.00011704,2]
[339551801,1727691036134,-540.9746018,0.00011704,2]
[339551802,1727691036146,-134.81291595,0.00011704,2]
[339551803,1727691036155,-249.22,0.00011789,2]
[339551804,1727691036164,-87.71989619,0.00011789,2]
[339551814,1727691038509,-228.86010381,0.00011789,2]
[339551815,1727691038519,-102.52743271,0.00011837,2]
[339551816,1727691038623,-335.33500005,0.00011837,2]
[339551817,1727691038744,-3572.72740891,0.00011837,2]
[339551818,1727691038754,-900.0,0.000119,4]
[339551819,1727691038763,-1295.38455135,0.00012,4]
[339551820,1727691038773,-1800.0,0.00012,4]
[339551821,1727691038782,-2700.0,0.000121,4]
[339551822,1727691038792,-3600.0,0.000122,4]
[339551823,1727691038802,-180.0,0.00012243,2]
[339551824,1727691038811,-1250.0,0.000123,2]
[339551825,1727691038821,-74.48928271,0.000123,2]
[339551826,1727691038832,-925.67071729,0.000123,2]
[339551827,1727691038842,-4500.0,0.000123,4]
[339551828,1727691038851,-358.88422276,0.00012322,2]
[339551829,1727691038862,-420.0,0.00012352,2]
[339551830,1727691038872,-3215.2012,0.00012397,2]
[339551832,1727691038881,-291.41650499,0.000124,2]
[339551834,1727691038890,-900.0,0.000124,4]
[339551836,1727691038900,-153.47023447,0.000124,2]
[339551838,1727691038910,-153.47023447,0.000124,2]
[339551840,1727691038919,-153.47023447,0.000124,2]
[339551842,1727691038929,-153.47023447,0.000124,2]
[339551844,1727691038939,-153.97,0.000124,2]
[339551846,1727691038949,-173.78618549,0.000124,2]
[339551848,1727691038958,-173.78618549,0.000124,2]
[339551850,1727691038968,-173.78618549,0.000124,2]
[339551852,1727691038978,-173.78618549,0.000124,2]
[339551854,1727691038988,-174.28,0.000124,2]
[339551856,1727691038997,-168.13522116,0.000124,2]
[339551858,1727691039007,-168.13522116,0.000124,2]
[339551860,1727691039017,-168.13522116,0.000124,2]
[339551862,1727691039027,-168.63,0.000124,2]
[339551864,1727691039037,-166.99,0.00012445,2]
[339551866,1727691039046,-165.93,0.00012445,2]
[339551868,1727691039056,-3886.28585161,0.0001249,2]
[339551870,1727691039065,-409.316,0.00012498,2]
[339551872,1727691039075,-1000.0,0.00012499,2]
[339551874,1727691039085,-601.0,0.000125,2]
[339551876,1727691039094,-2081.31184034,0.000125,2]
[339551878,1727691039104,-1659.56610356,0.000125,2]
[339551880,1727691039119,-473.48451638,0.000125,2]
[339551882,1727691039135,-51896.50915847,0.000125,2]
[339551884,1727691039145,-194515.91665395,0.000125,2]
[339552100,1727691041500,-12637.99943042,0.000125,2]
[339552103,1727691041531,-284.2524864,0.000125,2]
[339552116,1727691041658,-505.47612294,0.000125,2]
[339552118,1727691041672,-5710.59868073,0.000125,2]
[339552120,1727691041685,-63789.0,0.000125,2]
[339552182,1727691043419,-571.77,0.000125,2]
[339552183,1727691043430,-5658.54071231,0.000125,2]
[339552184,1727691043442,-2380.95156435,0.000125,2]
[339552185,1727691043453,-3930.5490057,0.000125,2]
[339552186,1727691043579,-1273.85816,0.000125,2]
[339552187,1727691043590,-1352.54009706,0.000125,2]
[339552190,1727691043602,-4498.89302338,0.000125,2]
[339552191,1727691043613,-477.28538936,0.000125,2]
[339552193,1727691043629,-1270.0,0.000125,2]
[339552195,1727691043641,-1560.98517093,0.000125,2]
[339552199,1727691043662,-861.32776004,0.000125,2]
[339552201,1727691043677,-5595.82016693,0.000125,2]
[339552204,1727691043691,-310.69999982,0.000125,2]
[339552335,1727691046397,-154.685099,0.00012027,2]
[339552336,1727691046406,-482.314901,0.000125,2]
[339552337,1727691046419,-157.685099,0.000125,2]
[339552338,1727691046428,-6225.05490101,0.000125,2]
[339552339,1727691046482,-6350.0,0.000125,2]
[339552340,1727691046499,-48386.0531306,0.000125,2]
[339552341,1727691046515,-320.94132826,0.000125,2]
[339552342,1727691046526,-3527.69677201,0.000125,2]
[339552343,1727691046538,-1266.82,0.000125,2]
[339552344,1727691046599,-771.33145462,0.000125,2]
[339552345,1727691046686,-9027.81154367,0.000125,2]
[339552346,1727691046699,-13239.16505135,0.000125,2]
[339552347,1727691048271,-7500.0,0.000124,2]
[339552348,1727691048281,-264.03034652,0.000125,2]
[339552349,1727691050438,500.0,0.00021999,120]
[339552350,1727691050686,500.0,0.00021999,120]
[339552351,1727691050801,1469.15,0.00021999,120]
[339552352,1727691050942,500.0,0.00021999,120]
[339552353,1727691051043,500.0,0.00021999,120]
[339552354,1727691051073,1469.15,0.00021999,120]
[339552355,1727691051227,500.0,0.00021999,120]
[339552356,1727691051297,500.0,0.00021999,120]
[339552357,1727691051337,1469.15,0.00021999,120]
[339552358,1727691051541,500.0,0.00021999,120]
[339552359,1727691051572,500.0,0.00021999,120]
[339552360,1727691051771,1469.15,0.00021999,120]
[339552361,1727691051803,500.0,0.00021999,120]
[339552362,1727691051858,500.0,0.00021999,120]
[339552363,1727691051892,1469.15,0.00021999,120]
[339552364,1727691052146,500.0,0.00021999,120]
[339552365,1727691052176,1469.15,0.00021999,120]
[339552366,1727691052386,500.0,0.00021999,120]
[339552367,1727691052417,1469.15,0.00021999,120]
[339552368,1727691052445,500.0,0.00021999,120]
[339552369,1727691052647,500.0,0.00021999,120]
[339552370,1727691052710,500.0,0.00021999,120]
[339552371,1727691052933,500.0,0.00021999,120]
[339552372,1727691052978,500.0,0.00021999,120]
[339552373,1727691053053,1469.15,0.00021999,120]
[339552374,1727691053138,500.0,0.00021999,120]
[339552375,1727691053185,480.92208128,0.00021999,120]
[339552376,1727691053258,500.0,0.00021999,120]
[339552377,1727691053404,176.09619649,0.00021999,120]
[339552378,1727691053501,1469.15,0.00021999,120]
[339552379,1727691053573,500.0,0.00021999,120]
[339552380,1727691053767,1469.15,0.00021999,120]
[339552381,1727691053949,500.0,0.00021999,120]
[339552382,1727691054034,1469.15,0.00021999,120]
[339552383,1727691054322,1469.15,0.00021999,120]
[339552384,1727691054558,1469.15,0.00021999,120]
[339552385,1727691054587,213.187412,0.00021999,120]
[339552386,1727691054817,1469.15,0.00021999,120]
[339552387,1727691055118,1469.15,0.00021999,120]
[339552388,1727691055392,1469.15,0.00021999,120]
[339552389,1727691055708,502.72008904,0.00021999,120]
[339552390,1727691055739,1469.15,0.00021999,120]
[339552391,1727691056005,1469.15,0.00021999,120]
[339552392,1727691056257,1469.15,0.00021999,120]
[339552393,1727691056584,1469.15,0.00021999,120]
[339552394,1727691056737,500.0,0.00021999,120]
[339552395,1727691056863,1469.15,0.00021999,120]
[339552396,1727691057144,1469.15,0.00021999,120]
[339552397,1727691057226,500.0,0.00021999,120]
[339552398,1727691057406,1469.15,0.00021999,120]
[339552399,1727691057510,500.0,0.00021999,120]
[339552400,1727691057619,500.0,0.00021999,120]
[339552401,1727691057662,1469.17622793,0.00021999,120]
[339552402,1727691057832,500.0,0.00021999,120]
[339552403,1727691057946,500.29605474,0.00021999,120]
[339552404,1727691058657,500.0,0.00021999,120]
[339552405,1727691058925,500.0,0.00021999,120]
[339552406,1727691059232,500.0,0.00021999,120]
[339552407,1727691059499,500.0,0.00021999,120]
[339552408,1727691059762,500.0,0.00021999,120]
[339552409,1727691060033,500.0,0.00021999,120]
[339552410,1727691060282,500.0,0.00021999,120]
[339552411,1727691060743,500.0,0.00021999,120]
[339552412,1727691061093,500.0,0.00021999,120]
[339552413,1727691061367,500.0,0.00021999,120]
[339552414,1727691061635,500.0,0.00021999,120]
[339552415,1727691061909,500.0,0.00021999,120]
[339552416,1727691062181,639.84,0.00021999,120]
[339552417,1727691062421,500.0,0.00021999,120]
[339552418,1727691062704,500.0,0.00021999,120]
[339552419,1727691063040,500.0,0.00021999,120]
[339552420,1727691063081,500.0,0.00021999,120]
[339552421,1727691063313,500.0,0.00021999,120]
[339552422,1727691063363,500.0,0.00021999,120]
[339552423,1727691063646,500.0,0.00021999,120]
[339552424,1727691063677,500.0,0.00021999,120]
[339552425,1727691063989,500.0,0.00021999,120]
[339552426,1727691064248,500.0,0.00021999,120]
[339552427,1727691064280,500.0,0.00021999,120]
[339552428,1727691064539,500.0,0.00021999,120]
[339552429,1727691064571,500.0,0.00021999,120]